Cogmind - Beta 14 @@@ ROGUE MODE // 2025.05.03 @ 04:37:14 Player: DuckBoy Result: Destroyed by H-88 Terminator with KE Penetrator Performance ------------- Evolutions (9) 4500 Regions Visited (18) 3600 Robots Destroyed (236) 1180 Value Destroyed (8771) 8771 Prototype IDs (38) 760 Alien Tech Used (0) 0 Bonus (6076) 6076 TOTAL SCORE: 24887 Bonus ------- Triggered High Security 500 High Alert Combat Kills 1898 Follower Combat Kills 3108 Network Hubs Disabled 200 Registered with UFD 300 Met Data Miner 300 Built Enhanced Grunts 300 A7 Reached Mainframe 300 Friendly Fire -830 Cogmind --------- Core Integrity 0/1600 Matter 280/300 Energy 66/100 System Corruption 51% Temperature Cool (0) Movement Core (250) Ox4 Location -1/Access Parts ------- > --- POWER (3) -------- (None) > --- PROPULSION (6) --- (None) > --- UTILITY (12) ----- Advanced Signal Interpreter Advanced Target Analyzer Armor Integrity Analyzer Armor Integrity Analyzer Advanced Transmission Jammer > --- WEAPON (4) ------- Nova Cannon > --- INVENTORY (5) ---- Impulse Thruster Advanced Shield Generator Advanced Field Recycling Unit (0) Peak State ------------ > --- POWER ------------ Micro Antimatter Reactor Quantum Reactor > --- PROPULSION ------- Antigrav Array Antigrav Array Antigrav Array > --- UTILITY ---------- Advanced Sensor Array Advanced Signal Interpreter Advanced Target Analyzer Armor Integrity Analyzer Armor Integrity Analyzer Advanced Transmission Jammer Advanced ECM Suite Advanced Cloaking Device Advanced Hacking Suite System Shield Advanced System Shield > --- WEAPON ----------- Enhanced Nova Cannon Linear Accelerator Force Lance > --- INVENTORY -------- Improved Antigrav System Combat Linear Gravjet Impulse Thruster Advanced Shield Generator Advanced Field Recycling Unit [Rating: 152] Favorites ----------- Power Micro Fission Core Engine Ion Engine Power Core Micro Fission Core Reactor Quantum Reactor Propulsion Overtuned Huge Scrapsphere Treads Light Treads Leg Cargo Legs Wheel Overtuned Huge Scrapsphere Hover Unit Antigrav Array Utility High-capacity Storage Unit Device Scrap Suit Storage High-capacity Storage Unit Processor Enhanced Optical Array Hackware Makeshift Hacking Suite Protection Weapon Shielding Weapon Overtuned Coil Gun Energy Gun Medium Laser Energy Cannon Heavy Plasma Cannon Ballistic Gun Overtuned Coil Gun Ballistic Cannon Linear Accelerator Launcher Grenade Launcher Special Weapon Mining Laser Slashing Weapon Power Sword Piercing Weapon Force Lance Build | -11 -10 -10 -9 -9 -6 -6 -6 -6 -5 -5 -5 -5 -5 -5 -4 -3 -2 -1 ------- Run | Yrd Mat Sub Rec Scr Fac Low Low Dat Pro Fac Ext Cet Arc Hub Fac Res Res Acc Slots Evolved 18 | . . . . . 8 . . . . 2 . . . . 2 2 2 2 Power 2 | . . . . . 1 . . . . . . . . . . . . 1 Propulsion 4 | . . . . . 2 . . . . . . . . . . . 2 . Utility 10 | . . . . . 5 . . . . 2 . . . . 1 2 . . Weapon 2 | . . . . . . . . . . . . . . . 1 . . 1 Parts Attached 282 | 6 12 18 5 3 58 3 3 . . 49 11 5 6 10 29 9 20 35 Power 31 | 1 . 3 . . 8 . 1 . . 5 . 1 . 1 . 1 2 8 Engine 12 | 1 . 3 . . 5 . . . . 2 . . . . . . . 1 Core 7 | . . . . . 3 . 1 . . 3 . . . . . . . . Reactor 12 | . . . . . . . . . . . . 1 . 1 . 1 2 7 Propulsion 44 | 2 1 3 1 . 11 . . . . 4 . . . . 4 1 8 9 Treads 3 | 1 1 . . . . . . . . . . . . . . . . 1 Leg 10 | . . . 1 . 4 . . . . 1 . . . . . 1 2 1 Wheel 26 | 1 . 3 . . 7 . . . . 3 . . . . 4 . 5 3 Hover 5 | . . . . . . . . . . . . . . . . . 1 4 Flight . | . . . . . . . . . . . . . . . . . . . Utility 93 | 1 4 2 2 2 19 1 1 . . 16 1 2 4 2 14 3 7 12 Device 39 | . . . 1 . 8 1 . . . 8 . . 2 . 8 1 2 8 Storage 9 | 1 3 . . 1 1 . . . . 1 . . . . 1 . 1 . Processor 9 | . . . 1 . 3 . . . . . . . . . . 1 3 1 Hackware 14 | . . . . 1 1 . 1 . . 3 . . 2 1 1 1 . 3 Protection 22 | . 1 2 . . 6 . . . . 4 1 2 . 1 4 . 1 . Artifact . | . . . . . . . . . . . . . . . . . . . Weapon 114 | 2 7 10 2 1 20 2 1 . . 24 10 2 2 7 11 4 3 6 Energy Gun 18 | 2 4 4 . . 1 . . . . 2 . . . . 1 1 2 1 Energy Cannon 17 | . . 1 . . 5 1 . . . 2 . 1 . . 2 2 . 3 Ballistic Gun 27 | . . 1 1 . 1 . . . . 10 5 1 . 5 3 . . . Ballistic Cannon 3 | . . . . . 1 . . . . . . . . . . 1 . 1 Launcher 22 | . 3 2 . 1 7 1 1 . . 2 3 . . . 2 . . . Special Weapon 14 | . . 2 1 . . . . . . 4 2 . 1 2 1 . 1 . Impact Weapon . | . . . . . . . . . . . . . . . . . . . Slashing Weapon 12 | . . . . . 5 . . . . 4 . . 1 . 2 . . . Piercing Weapon 1 | . . . . . . . . . . . . . . . . . . 1 Special Melee Weapon . | . . . . . . . . . . . . . . . . . . . Unidentified Prototypes 3 | . . . . . . . . . . 1 . 2 . . . . . . Corrupted Parts 2 | . . . . . . . . . . . . . . . . . . 2 System Corruption 26 | . . . . . . . . . . . . . . . . . . 26 Parts Lost 111 | . . 6 . . 17 . . . . 6 1 1 . 5 22 7 13 33 Power 22 | . . 1 . . 5 . . . . 3 . . . 2 1 1 2 7 Propulsion 26 | . . 2 . . 3 . . . . . . . . . 6 1 6 8 Utility 34 | . . 1 . . 5 . . . . 3 . 1 . 1 9 1 3 10 Weapon 29 | . . 2 . . 4 . . . . . 1 . . 2 6 4 2 8 Highest Loss Streak 21 | . . 6 . . 8 . . . . 1 1 1 . 2 20 6 13 21 To Critical Strikes 3 | . . . . . . . . . . . . . . . 2 . . 1 Average Slot Usage (%) 80 | . 99 98 81 71 82 93 93 93 93 83 77 82 82 80 74 13 41 54 Engine 7 | . 14 13 11 11 5 13 7 6 6 3 . . . . . . . 1 Core 2 | . . . . . 4 . 5 6 6 6 11 5 5 5 4 . . . Treads 3 | . 28 5 . . . . . . . . . . . . . . . . Leg 4 | . . . 9 11 11 6 6 6 6 . . . . . . 1 3 1 Wheel 7 | . . 21 5 . 3 20 20 20 20 12 11 11 11 11 9 . 9 1 Device 8 | . . . 9 3 13 13 13 13 13 9 11 11 16 13 12 1 1 9 Storage 7 | . 14 14 11 10 5 6 6 6 6 5 5 5 5 5 4 . 1 . Processor 9 | . . . 9 11 8 13 13 13 13 11 11 11 11 11 10 1 9 13 Hackware 6 | . . . . 1 9 6 6 6 6 16 11 11 11 10 13 3 4 8 Protection 2 | . 13 14 2 . 3 . . . . 1 1 5 . 2 2 . 2 . Energy Gun 2 | . 22 10 . . . . . . . . . . . . 1 . 3 . Energy Cannon 1 | . . 3 . . 5 6 3 . . . . 5 . . 3 . . 2 Ballistic Gun 2 | . . 2 . . 1 . . . . 7 9 5 . 10 5 . . . Launcher 5 | . 5 6 11 11 1 5 9 13 13 1 . . . . . . . . Special Weapon 3 | . . 5 11 11 . . . . . . . . 4 . 1 . . 2 Peak Build Rating 152 | 6 9 12 24 37 78 64 64 64 64 95 94 104 105 106 109 50 90 152 Average Rating 58 | 4 8 10 21 28 66 63 63 64 64 88 90 97 97 100 97 22 56 99 On Entrance 50 | . 6 9 11 24 37 60 63 64 64 64 90 93 104 97 94 3 16 57 Naked Turns 11 | . . . . . . . . . . . . . . . 1 10 . . Heaviest Build 212 | 12 49 54 53 212 88 88 85 75 75 95 72 92 92 89 82 41 103 73 Greatest Support 86 | 20 40 40 55 55 86 24 24 24 24 40 40 40 40 40 40 28 48 78 Greatest Overweight (x) 10 | 1 1 2 2 3 10 3 3 3 3 3 1 2 2 2 8 1 2 4 Average Overweight (x) 1 | . . 1 . 1 2 3 2 3 3 1 1 1 1 1 1 . . . Largest Inventory Capacity 35 | 8 20 20 20 35 35 20 20 20 20 20 20 20 20 20 20 5 20 5 Average Capacity 20 | 6 16 20 20 29 20 20 20 20 20 20 20 20 20 20 19 5 11 5 Most Carried 35 | 3 20 20 20 35 35 20 20 20 20 20 19 19 20 20 18 5 5 5 Average Carried 19 | 1 12 18 19 26 19 19 19 20 20 19 18 18 19 19 15 3 3 3 Final Capacity 35 | 8 20 20 20 35 20 20 20 20 20 20 20 20 20 20 5 5 5 5 Final Carried 35 | 3 20 19 20 35 20 20 20 20 20 19 17 19 20 18 5 3 3 3 Class Distribution -------------------- 27% | Scavenger-Scrapper 26% | Mutant 16% | Hacker-Scrapper 15% | Hauler-Mutant 5% | Scavenger-Mutant 4% | Commander-Scrapper 3% | Hacker-Mutant Dominant Class ---------------- Mutant | -10/Materials Mutant | -10/Subcaves Mutant | -9/Recycling Hauler-Mutant | -9/Scraptown Scavenger-Mutant | -6/Factory Scavenger-Scrapper | -6/Lower Caves Scavenger-Scrapper | -6/Lower Caves Scavenger-Scrapper | -6/Data Miner Scavenger-Scrapper | -5/Proximity Caves Hacker-Scrapper | -5/Factory Commander-Scrapper | -5/Extension Hacker-Scrapper | -5/Cetus Scavenger-Scrapper | -5/Archives Scavenger-Scrapper | -5/Hub_04(d) Hacker-Scrapper | -4/Factory Mutant | -3/Research Mutant | -2/Research Hacker-Mutant | -1/Access Resources | -11 -10 -10 -9 -9 -6 -6 -6 -6 -5 -5 -5 -5 -5 -5 -4 -3 -2 -1 ----------- Run | Yrd Mat Sub Rec Scr Fac Low Low Dat Pro Fac Ext Cet Arc Hub Fac Res Res Acc Matter Collected 6356 | 260 241 118 . 140 943 212 174 . 28 1608 675 41 200 459 551 4 252 450 Remotely . | . . . . . . . . . . . . . . . . . . . Salvage Created 9311 | . 1031 167 . . 1664 44 294 . 4 2135 1272 173 409 736 922 . 158 302 Parts 487 | . 71 15 . . 87 1 14 . 3 109 41 4 27 40 50 . 8 17 Haulers Intercepted 2 | . 2 . . . . . . . . . . . . . . . . . Recyclers Shooed 6 | . 1 . . . . . . . . 1 1 . . 1 2 . . . Parts Field Recycled . | . . . . . . . . . . . . . . . . . . . Retrieved Matter . | . . . . . . . . . . . . . . . . . . . Parts Self-Destructed 15 | . . 8 . . . 1 4 . 2 . . . . . . . . . Prevented 10 | . . . . . . . 10 . . . . . . . . . . . Kills | -11 -10 -10 -9 -9 -6 -6 -6 -6 -5 -5 -5 -5 -5 -5 -4 -3 -2 -1 ------- Run | Yrd Mat Sub Rec Scr Fac Low Low Dat Pro Fac Ext Cet Arc Hub Fac Res Res Acc Combat Hostiles Destroyed 152 | . 25 6 . . 29 4 7 . 2 35 16 2 2 2 13 . 2 7 Melee 13 | . . . . . 6 . . . . . . . . . 1 . . 6 Guns 43 | . 9 1 . . 2 . . . . 17 6 1 1 2 2 . 2 . Cannons 16 | . . 1 . . 8 . . . . 1 . . 1 . 4 . . 1 AOE 70 | . 16 4 . . 9 4 4 . 2 16 9 . . . 6 . . . Classes Destroyed 20 | . 8 2 . . 6 . . . 1 1 1 . . . . . 1 . Worker 19 | . 3 . . . 1 . . . . 7 . . . 4 3 . . 1 Builder 21 | . 1 . . . 4 . . . . 3 . . . 7 5 . . 1 Tunneler 1 | . . . . . . . . . . . . . . . . . 1 . Hauler 2 | . 2 . . . . . . . . . . . . . . . . . Recycler 11 | . 1 . . . 1 . . . . 1 3 . . 3 2 . . . Mechanic 6 | . . . . . 3 . . . . 1 2 . . . . . . . Operator 12 | . 3 . . . 1 . . . . . . . 6 2 . . . . Drone 2 | . . . . . . . . . 2 . . . . . . . . . Watcher 12 | . 3 . . . 1 . . . . 6 . 1 . 1 . . . . Swarmer 40 | . 9 4 . . 1 3 3 . . 9 . . . . 5 . . 6 Grunt 61 | . 16 . . . 17 . 2 . . 13 10 . . 2 . . 1 . Brawler 2 | . . . . . . . . . . 1 1 . . . . . . . Duelist 6 | . . . . . 1 . 1 . . 3 1 . . . . . . . Protector 1 | . . . . . 1 . . . . . . . . . . . . . Sentry 9 | . . . . . 2 . . . . 3 1 . 2 . 1 . . . Demolisher 2 | . . . . . . . . . . . 2 . . . . . . . Hunter 11 | . . . . . 3 1 1 . . 2 1 . . . 3 . . . Programmer 14 | . . . . . 4 . . . . 4 . . . . 4 . 1 1 Cetus Guard 2 | . . . . . . . . . . . . 2 . . . . . . Artisan 1 | . . 1 . . . . . . . . . . . . . . . . Subdweller 2 | . . 2 . . . . . . . . . . . . . . . . Best Kill Streak 16 | . 6 4 . . 6 3 3 . 1 6 12 3 3 16 9 . 2 3 Combat Bots Only 10 | . 3 4 . . 5 3 3 . 1 6 10 2 2 1 4 . 1 3 Max Kills in Single Turn 9 | . 4 4 . . 2 2 2 . 1 4 3 1 1 9 4 . 1 1 Gunslinging . | . . . . . . . . . . . . . . . . . . . Exploded 4 | . 3 4 . . 2 2 2 . 1 4 3 . . . 2 . . . Melee 1 | . . . . . 1 . . . . . . . . . 1 . . 1 Uniques/NPCs Destroyed . | . . . . . . . . . . . . . . . . . . . Combat | -11 -10 -10 -9 -9 -6 -6 -6 -6 -5 -5 -5 -5 -5 -5 -4 -3 -2 -1 -------- Run | Yrd Mat Sub Rec Scr Fac Low Low Dat Pro Fac Ext Cet Arc Hub Fac Res Res Acc Hostile Shots Fired 1661 | . 53 46 . . 286 18 8 . . 105 32 3 2 60 344 119 199 386 Missed 534 | . 24 10 . . 89 5 4 . . 31 8 . 1 10 126 49 59 118 Damage Taken 23314 | . 364 694 . . 3585 276 108 . . 1474 776 106 26 1639 3906 1169 3317 5874 Core 4608 | . 33 186 . . 483 45 . . . 128 82 13 . 201 557 363 909 1608 Absorbed by Shields 290 | . . . . . . . . . . . 54 26 . . . . . 210 Redirected to Shielding 191 | . 29 5 . . 157 . . . . . . . . . . . . . Regen/Repaired (Parts) 877 | . . . . . 108 . . . . 172 58 . 20 7 512 . . . Core Remaining (%) 52 | 100 . . . 12 . . . . 37 . . . . 57 51 72 37 . Volleys Fired 618 | . 69 35 1 . 80 16 14 . 2 159 69 5 15 40 55 10 9 39 Largest 3 | . 2 2 1 . 2 2 2 . 1 2 2 2 2 2 3 2 2 2 Hottest 240 | . 90 100 100 . 165 155 82 . 39 132 64 113 116 67 214 161 130 240 Shots Fired 1036 | . 120 49 1 . 121 23 16 . 2 287 111 9 20 80 116 14 18 49 Gun 676 | . 107 24 . . 23 . . . . 262 84 4 5 80 62 4 18 3 Cannon 195 | . . 9 . . 64 10 . . . 14 . 5 5 . 43 10 . 35 Launcher 121 | . 13 3 . . 34 13 16 . 2 11 18 . . . 11 . . . Special 44 | . . 13 1 . . . . . . . 9 . 10 . . . . 11 Kinetic 496 | . . 3 . . 23 . . . . 225 84 4 5 80 57 5 . 10 Thermal 307 | . 58 24 1 . 52 10 . . . 51 . . 10 . 46 9 18 28 Explosive 82 | . 13 3 . . 27 13 6 . 2 4 5 . . . 9 . . . Electromagnetic 131 | . 49 19 . . 19 . 10 . . 7 13 5 5 . 4 . . . Robot Hit Streak 27 | . 20 27 . . 10 3 5 . 6 10 11 3 5 7 10 2 4 6 Robot Miss Streak 7 | . 3 1 . . 4 3 . . . 7 5 3 3 5 4 5 2 3 Penetration Max 2 | . . . . . . . . . . 2 1 1 . 2 2 . . 1 Secondary Targets 3 | . 1 . . . . . . . . 2 . . . . . . . . Max Gunslinging Chain 1 | . 1 . . . . . . . . 1 . . . . . . . . Shots Hit Robots 537 | . 76 29 . . 87 7 3 . 1 114 53 5 20 40 55 4 9 34 Core Hits 418 | . 53 10 . . 79 13 10 . 2 80 70 4 8 29 38 1 6 15 Critical Kills 7 | . . . . . . . . . . 3 2 . 1 . 1 . . . Critical Parts Destroyed 8 | . . . . . . . . . . 6 . . . 1 . . . 1 Critical Strikes 34 | . 4 . . . 3 . . . . 11 2 . 2 2 4 . . 6 Burn 5 | . 2 . . . . . . . . 2 . . . . 1 . . . Destroy 17 | . . . . . . . . . . 9 2 . 2 2 1 . . 1 Blast 2 | . . . . . . . . . . . . . . . . . . 2 Corrupt 4 | . 2 . . . 1 . . . . . . . . . 1 . . . Sever 3 | . . . . . 2 . . . . . . . . . 1 . . . Impale 3 | . . . . . . . . . . . . . . . . . . 3 Melee Attacks 104 | . . . . . 32 . . . . 17 . . 9 . 15 . . 31 Impact . | . . . . . . . . . . . . . . . . . . . Slashing 73 | . . . . . 32 . . . . 17 . . 9 . 15 . . . Piercing 31 | . . . . . . . . . . . . . . . . . . 31 Sneak Attacks 14 | . . . . . 6 . . . . 2 . . 5 . 1 . . . Combat Hostiles . | . . . . . . . . . . . . . . . . . . . Follow-up Attacks 1 | . . . . . 1 . . . . . . . . . . . . . Damage Inflicted 29270 | . 2113 423 . . 5236 586 667 . 127 6512 3986 465 1000 2917 3207 214 342 1475 Guns 9430 | . 914 144 . . 447 . . . . 3723 1179 79 85 1552 842 24 329 112 Cannons 3438 | . . 124 . . 1181 149 . . . 271 . 152 155 . 618 190 . 598 Explosions 13624 | . 1196 155 . . 2566 437 667 . 127 2360 2807 234 . 1338 1536 . . 201 Melee 2654 | . . . . . 1013 . . . . 158 . . 732 . 211 . . 540 Ramming 96 | . 3 . . . 29 . . . . . . . . 27 . . 13 24 Kinetic 7808 | . . 36 . . 384 . . . . 3340 1179 79 85 1552 800 54 . 299 Thermal 5680 | . 803 136 . . 1636 149 . . . 758 185 234 28 188 663 160 329 411 Explosive 8911 | . 824 155 . . 1570 437 297 . 127 2078 1802 . . . 1420 . . 201 Electromagnetic 4121 | . 483 96 . . 604 . 370 . . 178 820 152 155 1150 113 . . . Impact . | . . . . . . . . . . . . . . . . . . . Slashing 2114 | . . . . . 1013 . . . . 158 . . 732 . 211 . . . Piercing 540 | . . . . . . . . . . . . . . . . . . 540 Highest Corruption 51 | . . . . . . . . . . 1 1 1 1 6 10 . 2 51 Average Corruption 2 | . . . . . . . . . . 1 1 1 1 3 5 . 1 15 Corruption Purged 1 | . . . . . . . . . . . . . 1 . . . . . Corruption Blocked 12 | . . . . . . . . . . . . . . . . . 12 . Effects 46 | . . . . . . . . . . 16 5 2 . 1 5 . . 17 Message Errors 11 | . . . . . . . . . . 4 . 1 . . 1 . . 5 Matter Fused 9 | . . . . . . . . . . 3 1 . . . 1 . . 4 Heat Flow Errors 3 | . . . . . . . . . . 2 . . . . 1 . . . Energy Discharges 2 | . . . . . . . . . . 1 . . . . 1 . . . Parts Rejected 1 | . . . . . . . . . . . . . . . . . . 1 Data Loss (minor) 10 | . . . . . . . . . . 4 2 1 . . . . . 3 Data Loss (major) 3 | . . . . . . . . . . 1 1 . . . . . . 1 Misfires 2 | . . . . . . . . . . . 1 . . . 1 . . . Alerts 2 | . . . . . . . . . . . . . . 1 . . . 1 Misdirections 1 | . . . . . . . . . . . . . . . . . . 1 Weapon Failures 2 | . . . . . . . . . . 1 . . . . . . . 1 Overload Shots . | . . . . . . . . . . . . . . . . . . . Overflow Damage 1351 | . 28 . . . 363 12 . . . 333 5 . 234 141 88 . . 147 Projectiles 127 | . . . . . . 12 . . . . . . . . 22 . . 93 Explosions 785 | . 28 . . . 205 . . . . 290 5 . . 141 66 . . 50 Melee 439 | . . . . . 158 . . . . 43 . . 234 . . . . 4 Knockbacks 4 | . . . . . 1 . . . . . . . . . . 2 . 1 Impact . | . . . . . . . . . . . . . . . . . . . Kinetic 4 | . . . . . 1 . . . . . . . . . . 2 . 1 Secondary . | . . . . . . . . . . . . . . . . . . . Self-Inflicted Damage 499 | . 60 . . . 110 40 33 . . 56 . . . 156 28 . 4 12 Shots 14 | . 3 . . . 3 1 1 . . 3 . . . 2 1 . . . Rammed 9 | . 1 . . . . . . . . . . . . 4 . . 1 3 Targets Rammed 17 | . 1 . . . 3 . . . . . . . . 4 . . 6 3 Kicked 8 | . . . . . 3 . . . . . . . . . . . 5 . Crushed . | . . . . . . . . . . . . . . . . . . . Highest Temperature 363 | . 261 . 20 . 340 279 12 . . 363 140 204 122 11 284 356 231 342 Average Temperature 86 | . 68 . 12 . 94 143 7 . . 86 35 96 68 11 74 142 81 118 Received Heat Transfer 2911 | . 129 . . . 1284 9 18 . . 288 89 . . 162 96 9 378 449 Effects 6 | . . . . . . 2 . . . 2 . . . . . 1 . 1 Shutdowns 1 | . . . . . . . . . . . . . . . . 1 . . Energy Bleed 2 | . . . . . . . . . . 1 . . . . . . . 1 Interference 2 | . . . . . . 2 . . . . . . . . . . . . Matter Decay 1 | . . . . . . . . . . 1 . . . . . . . . Siege Activations . | . . . . . . . . . . . . . . . . . . . Robots Corrupted 11 | . . . . . 4 . 3 . . 1 1 1 . 1 . . . . Combat Hostiles 10 | . . . . . 4 . 3 . . 1 1 1 . . . . . . Parts Fried 22 | . . . . . 6 . 4 . . 3 1 1 . 7 . . . . Impact Corruptions . | . . . . . . . . . . . . . . . . . . . Robots Melted . | . . . . . . . . . . . . . . . . . . . Combat Hostiles . | . . . . . . . . . . . . . . . . . . . Parts Melted 14 | . 2 . . . 3 . . . . . 3 . . . 5 . 1 . Heat Transferred 8444 | . 1956 296 . . 1949 224 . . . 1320 250 150 100 300 998 198 370 333 Parts Sabotaged . | . . . . . . . . . . . . . . . . . . . Parts Stolen . | . . . . . . . . . . . . . . . . . . . Parts Stripped . | . . . . . . . . . . . . . . . . . . . Power Chain Reactions 12 | . 5 . . . . . . . . . 3 1 . 2 1 . . . Alert | -11 -10 -10 -9 -9 -6 -6 -6 -6 -5 -5 -5 -5 -5 -5 -4 -3 -2 -1 ------- Run | Yrd Mat Sub Rec Scr Fac Low Low Dat Pro Fac Ext Cet Arc Hub Fac Res Res Acc Peak Influence 2212 | . 398 . 87 . 891 . . . . 1899 2212 1381 773 1776 880 427 379 512 Initial 1238 | . . . 67 . . . . . . . 1100 1238 552 79 851 397 206 227 Average 485 | . 226 . 80 . 407 . . . . 496 1600 1365 494 688 583 401 253 275 Maximum Alert Level 5 | . 1 . . . 3 . . . . 5 5 4 3 5 3 2 1 2 Low Security (%) 26 | 100 48 . 100 . 26 . . . . 38 . . . 27 . . . 14 Level 1 31 | . 51 . . . 9 . . . . 31 . . 28 20 . 56 100 73 Level 2 23 | . . . . . 59 . . . . 10 . . 49 3 77 44 . 12 Level 3 6 | . . . . . 4 . . . . 2 . . 21 17 22 . . . Level 4 5 | . . . . . . . . . . 3 46 100 . 24 . . . . Level 5 5 | . . . . . . . . . . 10 53 . . 7 . . . . High Security . | . . . . . . . . . . 1 . . . . . . . . Max Security . | . . . . . . . . . . . . . . . . . . . Squads Dispatched 70 | . 5 . . . 15 . . . . 17 5 . . 8 6 1 2 11 Investigation 26 | . 3 . . . 3 . . . . 8 1 . . 2 4 1 1 3 Extermination 10 | . . . . . 4 . . . . 3 . . . . 1 . . 2 Reinforcement 25 | . 2 . . . 6 . . . . 5 1 . . 6 1 . 1 3 Assault 8 | . . . . . 2 . . . . 1 3 . . . . . . 2 Garrison 1 | . . . . . . . . . . . . . . . . . . 1 Intercept . | . . . . . . . . . . . . . . . . . . . Searches Triggered . | . . . . . . . . . . . . . . . . . . . Data Miner Redirects 8 | . . . . . . . . . . 2 . . . . 2 1 . 3 Construction Impeded 9 | . . . . . 3 . . . . 3 1 . . 1 1 . . . Haulers Reinforced 2 | . . . . . 1 . . . . 1 . . . . . . . . Active Scanning Responses . | . . . . . . . . . . . . . . . . . . . Cargo Convoy Interrupts 1 | . . . . . . . . . . 1 . . . . . . . . Stealth | -11 -10 -10 -9 -9 -6 -6 -6 -6 -5 -5 -5 -5 -5 -5 -4 -3 -2 -1 --------- Run | Yrd Mat Sub Rec Scr Fac Low Low Dat Pro Fac Ext Cet Arc Hub Fac Res Res Acc Distress Signals 22 | . . . . . 3 . . . . 2 4 . . 3 2 . 2 6 Communications Jammed 7 | . . . . . . . . . . . . . . . . . . 7 Distress Signals 7 | . . . . . . . . . . . . . . . . . . 7 Times Spotted 364 | . 36 7 . . 45 7 10 . 1 52 40 4 13 29 38 4 19 59 Peak Tracking Total 13 | . 4 6 . . 6 3 3 . 1 5 12 4 1 8 8 4 13 10 Tactical Retreats 38 | . . 1 . . 8 . 3 . . 4 . . . 1 5 . 2 14 Traps | -11 -10 -10 -9 -9 -6 -6 -6 -6 -5 -5 -5 -5 -5 -5 -4 -3 -2 -1 ------- Run | Yrd Mat Sub Rec Scr Fac Low Low Dat Pro Fac Ext Cet Arc Hub Fac Res Res Acc Traps Triggered 17 | . 1 . . . 1 . . . . 4 6 . . . 3 1 . 1 Indirectly 5 | . . . . . . . . . . . 5 . . . . . . . Trap Hack Attempts . | . . . . . . . . . . . . . . . . . . . Triggered . | . . . . . . . . . . . . . . . . . . . Disarmed 6 | . . . . . . . . . . 6 . . . . . . . . Reprogrammed . | . . . . . . . . . . . . . . . . . . . Reused . | . . . . . . . . . . . . . . . . . . . Traps Extracted . | . . . . . . . . . . . . . . . . . . . Installed . | . . . . . . . . . . . . . . . . . . . Triggered 4 | . . 1 . . . . 1 . . 2 . . . . . . . . Machines | -11 -10 -10 -9 -9 -6 -6 -6 -6 -5 -5 -5 -5 -5 -5 -4 -3 -2 -1 ---------- Run | Yrd Mat Sub Rec Scr Fac Low Low Dat Pro Fac Ext Cet Arc Hub Fac Res Res Acc Machines Disabled 74 | . 5 1 . . 21 . . . . 24 5 . 1 11 5 . . 1 Max in Single Turn 6 | . 2 1 . . 6 . . . . 5 2 . 1 4 1 . . 1 Garrison Access 6 | . . . . . 1 . . . . 3 . . . 1 1 . . . Network Hub 1 | . . . . . . . . . . . . . . 1 . . . . Machines Repaired 7 | . . . . . . . . . . 4 . . . 2 1 . . . Machines Dismantled . | . . . . . . . . . . . . . . . . . . . Machines Sabotaged . | . . . . . . . . . . . . . . . . . . . Overloaded Fab Kills 1 | . . . . . . . . . . . . . . . . . 1 . Hacking | -11 -10 -10 -9 -9 -6 -6 -6 -6 -5 -5 -5 -5 -5 -5 -4 -3 -2 -1 --------- Run | Yrd Mat Sub Rec Scr Fac Low Low Dat Pro Fac Ext Cet Arc Hub Fac Res Res Acc Machines Accessed 102 | . 8 1 9 6 9 1 2 4 . 29 5 3 1 5 11 2 2 4 Terminals 44 | . 5 . 4 . 1 . . . . 12 5 3 . 4 5 2 1 2 Fabricators 11 | . . . . . 4 . . . . 3 . . . . 3 . 1 . Repair Stations 6 | . 1 . . . 1 . . . . 3 . . . . 1 . . . Recycling Units 15 | . 2 . 3 . 2 . . . . 5 . . . . 1 . . 2 Scanalyzers 2 | . . . . . . . . . . 2 . . . . . . . . Garrison Access 7 | . . . . . 1 . . . . 4 . . . 1 1 . . . Total Hacks 339 | . 20 1 38 38 15 1 2 30 . 83 8 7 12 8 52 4 7 13 Successful 240 | . 11 1 33 38 8 1 2 30 . 51 4 6 12 8 29 . 3 3 Failed 99 | . 9 . 5 . 7 . . . . 32 4 1 . . 23 4 4 10 Catastrophic 14 | . 2 . 1 . . . . . . 3 1 . . . 5 . . 2 Database Lockouts . | . . . . . . . . . . . . . . . . . . . Manual 108 | . 9 . 7 . 8 . . . . 29 4 1 2 5 30 4 1 8 Terminals 137 | . 12 . 6 . 2 . . . . 40 8 7 . 7 37 4 6 8 Fabricators 21 | . . . . . 5 . . . . 6 . . . . 9 . 1 . Repair Stations 18 | . 2 . . . 2 . . . . 10 . . . . 4 . . . Recycling Units 35 | . 6 . 7 . 3 . . . . 13 . . . . 1 . . 5 Scanalyzers 5 | . . . . . . . . . . 5 . . . . . . . . Garrison Access 14 | . . . . . 3 . . . . 9 . . . 1 1 . . . Terminal Hacks 158 | . 4 1 27 38 . 1 2 30 . 16 2 6 12 3 13 . 2 1 Record 89 | . . . 24 37 . . . 11 . . . 5 12 . . . . . Part Schematic 10 | . . . . . . . . 9 . 1 . . . . . . . . Robot Schematic 10 | . 1 . . . . . . 7 . . . . . . 2 . . . Prototype ID Bank 4 | . . . . . . . . 3 . 1 . . . . . . . . Open Door 4 | . . . . . . 1 2 . . . . 1 . . . . . . Level Access Points 1 | . . . . . . . . . . . . . . . . . 1 . Branch Access Points 1 | . . . . . . . . . . . . . . . 1 . . . Machine Index 2 | . . . . . . . . . . 1 . . . 1 . . . . Recycling Unit Index 2 | . . . . . . . . . . 1 . . . . 1 . . . Alert Level 6 | . . . . . . . . . . 3 1 . . . 2 . . . Unreport Threat 6 | . . . . . . . . . . 2 . . . . 4 . . . Locate Traps 4 | . 2 . . . . . . . . 1 1 . . . . . . . Disarm Traps 1 | . . . . . . . . . . 1 . . . . . . . . Dispatch Records 3 | . 1 . . . . . . . . 1 . . . 1 . . . . Security Status 1 | . . . 1 . . . . . . . . . . . . . . . Assault Status 1 | . . . . . . . . . . 1 . . . . . . . . Recall Investigation 1 | . . . . . . . . . . 1 . . . . . . . . Recall Reinforcements 3 | . . . . . . . . . . 1 . . . 1 . . 1 . Recall Assault 1 | . . . . . . . . . . 1 . . . . . . . . Registered Components 1 | . . . . . . . . . . . . . . . 1 . . . Registered Prototypes 1 | . . . . . . . . . . . . . . . 1 . . . Zone Layout 3 | . . . 1 . . . . . . . . . . . 1 . . 1 Derelict Proto ID Bank 2 | . . 1 . 1 . . . . . . . . . . . . . . Release Object 1 | . . . 1 . . . . . . . . . . . . . . . Fabricator Hacks 5 | . . . . . 1 . . . . 1 . . . . 3 . . . Network Status 3 | . . . . . 1 . . . . 1 . . . . 1 . . . Load Schematic 1 | . . . . . . . . . . . . . . . 1 . . . Build 1 | . . . . . . . . . . . . . . . 1 . . . Repair Station Hacks 11 | . 1 . . . . . . . . 6 . . . . 4 . . . Scan Component 7 | . 1 . . . . . . . . 4 . . . . 2 . . . Repair 4 | . . . . . . . . . . 2 . . . . 2 . . . Recycling Unit Hacks 5 | . . . 2 . . . . . . 3 . . . . . . . . Report Inventory 2 | . . . . . . . . . . 2 . . . . . . . . Retrieve Components 3 | . . . 2 . . . . . . 1 . . . . . . . . Scanalyzer 4 | . . . . . . . . . . 4 . . . . . . . . Insert Component 2 | . . . . . . . . . . 2 . . . . . . . . Analyze 2 | . . . . . . . . . . 2 . . . . . . . . Garrison Access Hacks 6 | . . . . . 1 . . . . 3 . . . 1 1 . . . Seal Access 6 | . . . . . 1 . . . . 3 . . . 1 1 . . . Unauthorized Hacks 51 | . 6 . 4 . 6 . . . . 18 2 . . 4 8 . 1 2 Terminals 20 | . 2 . 1 . . . . . . 6 2 . . 4 4 . . 1 Track 2 | . . . . . . . . . . 1 1 . . . . . . . Botnet 11 | . 1 . 1 . . . . . . 3 1 . . 1 3 . . 1 Disrupt 1 | . . . . . . . . . . 1 . . . . . . . . Operators 4 | . 1 . . . . . . . . 1 . . . 1 1 . . . Sabotage 2 | . . . . . . . . . . . . . . 2 . . . . Fabricators 9 | . . . . . 3 . . . . 2 . . . . 3 . 1 . Liberate 6 | . . . . . 3 . . . . 1 . . . . 2 . . . Haulers 2 | . . . . . . . . . . 1 . . . . 1 . . . Overload 1 | . . . . . . . . . . . . . . . . . 1 . Repair Stations 11 | . . . . . 3 . . . . 6 . . . . 1 . . 1 Mechanics 1 | . . . . . . . . . . 1 . . . . . . . . Patch 1 | . . . . . 1 . . . . . . . . . . . . . Recycling Units 11 | . 4 . 3 . . . . . . 4 . . . . . . . . Monitor 3 | . 1 . 1 . . . . . . 1 . . . . . . . . Reject 3 | . 1 . 1 . . . . . . 1 . . . . . . . . Recyclers 3 | . 1 . 1 . . . . . . 1 . . . . . . . . Mask 2 | . 1 . . . . . . . . 1 . . . . . . . . Fedlink 2 | . . . . . . . . . . 2 . . . . . . . . Scrapoids 7 | . . . . . 2 . . . . 3 . . . . 1 . . 1 Scanalyzers . | . . . . . . . . . . . . . . . . . . . Garrison Access . | . . . . . . . . . . . . . . . . . . . Data Cores Recovered 2 | . 1 . . . 1 . . . . . . . . . . . . . Used . | . . . . . . . . . . . . . . . . . . . Hacking Detections 59 | . 6 . 6 . 6 . . . . 21 5 1 . 2 5 2 1 4 Full Trace Events 10 | . 1 . . . . . . . . 3 1 . . . 3 . . 2 Feedback Events 2 | . . . . . . . . . . 1 . . . . . . . 1 Hackware Fried 2 | . . . . . . . . . . 1 . . . . . . . 1 Feedback Blocked . | . . . . . . . . . . . . . . . . . . . Robot Schematics Acquired 10 | . 1 . . . . . . 7 . . . . . . 2 . . . Robots Built 2 | . . . . . . . . . . . . . . . 2 . . . Authchips . | . . . . . . . . . . . . . . . . . . . Time 68 | . . . . . . . . . . . . . . . 68 . . . Total Robot Build Rating 16 | . . . . . . . . . . . . . . . 16 . . . Part Schematics Acquired 12 | . . . . . . . . 9 . 3 . . . . . . . . Parts Built . | . . . . . . . . . . . . . . . . . . . Authchips . | . . . . . . . . . . . . . . . . . . . Time . | . . . . . . . . . . . . . . . . . . . Total Part Build Rating . | . . . . . . . . . . . . . . . . . . . Parts Repaired 4 | . . . . . . . . . . 2 . . . . 2 . . . Time 248 | . . . . . . . . . . 84 . . . . 164 . . . Parts Recycled . | . . . . . . . . . . . . . . . . . . . Recycled Matter . | . . . . . . . . . . . . . . . . . . . Retrieved Matter . | . . . . . . . . . . . . . . . . . . . Retrieved Components 11 | . . . 2 . . . . . . 9 . . . . . . . . Parts Scanalyzed 2 | . . . . . . . . . . 2 . . . . . . . . Part Schematics Acquired 2 | . . . . . . . . . . 2 . . . . . . . . Parts Damaged . | . . . . . . . . . . . . . . . . . . . Bothacking | -11 -10 -10 -9 -9 -6 -6 -6 -6 -5 -5 -5 -5 -5 -5 -4 -3 -2 -1 ------------ Run | Yrd Mat Sub Rec Scr Fac Low Low Dat Pro Fac Ext Cet Arc Hub Fac Res Res Acc Used RIF Installer . | . . . . . . . . . . . . . . . . . . . Robots Hacked 5 | . . . . . . . . . . . 2 . . . . . . 3 Non-combat 4 | . . . . . . . . . . . 1 . . . . . . 3 Combat . | . . . . . . . . . . . . . . . . . . . Robot Hacks Applied 5 | . . . . . . . . . . . 1 . . . . . . 4 no_distress 3 | . . . . . . . . . . . 1 . . . . . . 2 check_alert 2 | . . . . . . . . . . . . . . . . . . 2 Manual 1 | . . . . . . . . . . . 1 . . . . . . . Relay Couplers Released . | . . . . . . . . . . . . . . . . . . . Fabnet Peak Effective % . | . . . . . . . . . . . . . . . . . . . Robots Rewired 7 | . . . . . . . . . . . 7 . . . . . . . Allies Hacked 3 | . . . . . . . . . . . . . . . 2 . . 1 Hacks Repelled . | . . . . . . . . . . . . . . . . . . . Allies | -11 -10 -10 -9 -9 -6 -6 -6 -6 -5 -5 -5 -5 -5 -5 -4 -3 -2 -1 -------- Run | Yrd Mat Sub Rec Scr Fac Low Low Dat Pro Fac Ext Cet Arc Hub Fac Res Res Acc Total Allies 69 | . . . . . 13 . . . . 15 24 5 . . 7 . . 5 Largest Group 21 | . . . . . 8 . . . . 8 21 10 10 7 5 . . 5 Highest-Rated Group 902 | . . . . . 230 . . . . 382 902 738 738 523 235 . . 320 Highest-Rated Ally 159 | . . . . . 31 . . . . 50 159 159 159 96 82 . . 64 Total Orders 3 | . . . . . . . . . . 3 . . . . . . . . STAY 2 | . . . . . . . . . . 2 . . . . . . . . FOLLOW 1 | . . . . . . . . . . 1 . . . . . . . . Ally Attacks 596 | . . . . . 105 . . . . 125 170 14 21 96 48 . . 17 Total Damage 14301 | . . . . . 1614 . . . . 2738 3585 314 614 3572 1284 . . 580 Kills 97 | . . . . . 9 . . . . 23 25 2 3 25 9 . . 1 Allies Corrupted 1 | . . . . . 1 . . . . . . . . . . . . . Allies Melted 2 | . . . . . 1 . . . . . . . . 1 . . . . Intel | -11 -10 -10 -9 -9 -6 -6 -6 -6 -5 -5 -5 -5 -5 -5 -4 -3 -2 -1 ------- Run | Yrd Mat Sub Rec Scr Fac Low Low Dat Pro Fac Ext Cet Arc Hub Fac Res Res Acc Robot Analysis Total . | . . . . . . . . . . . . . . . . . . . Derelict Logs Recovered 7 | . . 1 . 2 . 3 1 . . . . . . . . . . . Drone Launches . | . . . . . . . . . . . . . . . . . . . Drone Recoveries . | . . . . . . . . . . . . . . . . . . . Exploration | -11 -10 -10 -9 -9 -6 -6 -6 -6 -5 -5 -5 -5 -5 -5 -4 -3 -2 -1 ------------- Run | Yrd Mat Sub Rec Scr Fac Low Low Dat Pro Fac Ext Cet Arc Hub Fac Res Res Acc Turns Passed 22797 | 49 2491 537 324 5394 1760 1220 1217 92 942 3304 709 269 1690 329 997 150 361 962 Spaces Moved 15034 | 38 1052 311 236 2485 931 1165 1149 93 885 3031 598 125 333 225 864 180 299 1034 Core 222 | 1 . . . . . . . . . . . . . . 8 148 61 4 Treads 1099 | 5 1052 37 . . . . . . . . . . . . . . . 5 Legs 3133 | . . . 191 2485 399 . . . . . . . . . . 32 26 . Wheels 9652 | 32 . 274 45 . 532 1165 1149 93 885 3031 598 125 333 225 856 . 195 114 Hover 928 | . . . . . . . . . . . . . . . . . 17 911 Flight . | . . . . . . . . . . . . . . . . . . . Fastest Speed 50 | 50 160 110 110 130 100 100 90 100 100 80 80 80 80 80 50 50 50 52 Average Speed 121 | 97 202 125 126 215 139 100 99 100 100 84 80 87 82 89 80 61 96 64 Slowest Speed 450 | 160 240 240 130 340 400 100 100 100 100 100 80 90 90 90 450 180 130 250 Overloaded Moves . | . . . . . . . . . . . . . . . . . . . Propulsion Burnouts . | . . . . . . . . . . . . . . . . . . . Robots Hopped . | . . . . . . . . . . . . . . . . . . . Cave-ins Triggered . | . . . . . . . . . . . . . . . . . . . Exploration Rate (%) 57 | 3 97 17 68 95 27 97 99 78 93 69 77 80 99 25 24 5 10 33 Regions Visited 18 Branch Regions 11 Pre-discovered Areas 3 | . . . . 1 . . 1 1 . . . . . . . . . . Known Exits Taken 13 | . . . 1 1 1 1 1 1 1 1 1 1 1 1 . . 1 . Unknown Exits Taken 5 | 1 1 1 . . . . . . . . . . . . 1 1 . . Scrap Searched 18 | . . . . 7 . 3 3 . 5 . . . . . . . . . Spaces Dug 234 | . . 5 1 . 11 47 . . 18 98 11 . . . 24 . . 19 Terrain Destroyed 1469 | . 117 13 1 . 216 142 85 . 33 290 161 18 3 200 151 5 . 34 Melee 30 | . . . . . 4 . . . . 14 . . . . 8 . . 4 Projectile 339 | . . . 1 . 16 4 . . . 145 66 2 3 33 44 5 . 20 AOE 1100 | . 117 13 . . 196 138 85 . 33 131 95 16 . 167 99 . . 10 Terrain Rammed . | . . . . . . . . . . . . . . . . . . . Walls Destroyed . | . . . . . . . . . . . . . . . . . . . Machines Disabled . | . . . . . . . . . . . . . . . . . . . Actions | -11 -10 -10 -9 -9 -6 -6 -6 -6 -5 -5 -5 -5 -5 -5 -4 -3 -2 -1 --------- Run | Yrd Mat Sub Rec Scr Fac Low Low Dat Pro Fac Ext Cet Arc Hub Fac Res Res Acc Total 18556 | 46 1292 378 259 2539 1207 1196 1206 92 940 3565 761 275 1714 290 1030 203 341 1222 Wait 2242 | . 131 8 12 . 62 9 24 . 54 265 59 139 1339 7 59 3 4 67 Move 15017 | 37 1051 310 235 2484 930 1164 1148 92 884 3030 597 124 332 224 863 179 299 1034 Hop . | . . . . . . . . . . . . . . . . . . . Pick Up 140 | 3 21 5 4 38 19 2 8 . . 14 2 2 7 1 4 2 3 5 Fast Attach 94 | 6 1 . . 1 22 . 1 . . 7 1 . 1 . 4 4 18 28 Attach 68 | . . 6 2 1 15 . . . . 12 3 1 . 3 11 5 2 7 Detach 11 | . . . . . 1 . . . . 6 2 . . . . . . 2 Swap 120 | . 11 12 3 1 21 3 2 . . 30 7 4 5 7 14 . . . Drop 91 | . 7 2 2 13 23 2 9 . . 18 2 . 6 . 3 . 1 3 Fire 618 | . 69 35 1 . 80 16 14 . 2 159 69 5 15 40 55 10 9 39 Melee 103 | . . . . . 31 . . . . 17 . . 9 . 15 . . 31 Ram 8 | . . . . . . . . . . . . . . 4 . . 1 3 Kick 7 | . . . . . 3 . . . . . . . . . . . 4 . Crush 1 | . 1 . . . . . . . . . . . . . . . . . Escape Stasis 8 | . . . . . . . . . . . 8 . . . . . . . Rewire 15 | . . . . 1 . . . . . . 11 . . . . . . 3 Trap . | . . . . . . . . . . . . . . . . . . . Miscellaneous 13 | . . . . . . . . . . 7 . . . 4 2 . . . Route ------- -11/Scrapyard -10/Materials (discovered 5 exits: [*Mat x3] / [*Min] / *Sub) -10/Subcaves -9/Recycling -9/Scraptown (discovered 2 exits: *Fac x2) -6/Factory -6/Lower Caves -6/Lower Caves (discovered 2 exits: *Fac / *Dat) -6/Data Miner -5/Proximity Caves -5/Factory (discovered 5 exits: *Fac x3 / *Ext x2) -5/Extension (discovered 2 exits: *Fac / *Cet) -5/Cetus -5/Archives (discovered 3 exits: *Fac / *Hub x2) -5/Hub_04(d) -4/Factory (discovered 3 exits: *Res / Upp x2) -3/Research (discovered 2 exits: *Res x2) -2/Research (discovered 3 exits: *Acc x3) -1/Access History --------- Turn | Location | Event 33 | -11/Scrapyard | Discovered new exit (range 15) 50 | -11/Scrapyard | Entered Materials 303 | -10/Materials | Build established: Mutant 323 | -10/Materials | Discovered new exit (range 3) 708 | -10/Materials | Discovered new exit (range 13) 799 | -10/Materials | Discovered new exit (range 10) 1480 | -10/Materials | Discovered new exit (range 8) 2517 | -10/Materials | Discovered new exit (range 10) 2541 | -10/Materials | Entered Subcaves 2551 | -10/Subcaves | Learned Materials stockpile data 2660 | -10/Subcaves | Core integrity fell below 50% 2680 | -10/Subcaves | Core integrity fell below 20% 2718 | -10/Subcaves | Lost 6 parts (1p2n1u2w) 2827 | -10/Subcaves | Visited 4L-MR0's lab 2844 | -10/Subcaves | Found Cargo Legs 3000 | -10/Subcaves | Shifting Twisted Machinery released Sub. Optics 3002 | -10/Subcaves | Shifting Twisted Machinery released Ripper 3066 | -10/Subcaves | Discovered new exit (range 11) 3078 | -10/Subcaves | Entered Recycling 3134 | -9/Recycling | Attached Cargo Legs, gained temporary slots: Utility x2 3369 | -9/Recycling | Scanned before Scraplab entrance 3400 | -9/Recycling | Discovered new exit (range 3) 3401 | -9/Recycling | Identified exit to Scraptown 3402 | -9/Recycling | Entered Scraptown 3769 | -9/Scraptown | Visited Cave Peace 3843 | -9/Scraptown | Visited Assassins FH 3873 | -9/Scraptown | Visited Shadow of the Wyrm 3905 | -9/Scraptown | Visited CR-KLE's Repair Center 4418 | -9/Scraptown | Visited Junk Repository 4487 | -9/Scraptown | Visited Comm Corps 4563 | -9/Scraptown | Scanned Subdweller tech in exchange for log data 4565 | -9/Scraptown | Learned Factory terminal intel 4567 | -9/Scraptown | Learned location of Extension (-5) 4597 | -9/Scraptown | Discovered new exit (range 3) 4760 | -9/Scraptown | Visited Cyclists 4819 | -9/Scraptown | Visited UFD Registry 4829 | -9/Scraptown | Registered with UFD as "Ionskull" 4875 | -9/Scraptown | Visited Infowarlord's Domain 4940 | -9/Scraptown | Visited Chapter 10 4982 | -9/Scraptown | Visited Science Guys 5032 | -9/Scraptown | Visited Research Penetration Think Tank 5151 | -9/Scraptown | Visited LU-1G1's Boring Crew 5615 | -9/Scraptown | Build established: Hauler-Mutant 5898 | -9/Scraptown | Visited DA-N13 Charitable Foundation 5936 | -9/Scraptown | Found DCF Scrap (25 items) 5997 | -9/Scraptown | Visited Observation Area 6133 | -9/Scraptown | Visited Junk Repository 6598 | -9/Scraptown | Visited Scrap Suit Storage 6626 | -9/Scraptown | Found Scrap Suit 6630 | -9/Scraptown | Found Scrap Suit 7161 | -9/Scraptown | Discovered new exit (range 5) 7182 | -9/Scraptown | Identified exit to Factory 8737 | -9/Scraptown | Found Scrap Suit 8796 | -9/Scraptown | Entered Factory 8796 | -6/Factory | Evolved 8 slots: Power x1, Propulsion x2, Utility x5 8797 | -6/Factory | Loaded intel: 26 terminal locations 9288 | -6/Factory | Lost 4 parts (2p1u1w) 9561 | -6/Factory | Lost 3 parts (1p1u1w) 9627 | -6/Factory | Build established: Scavenger-Mutant 9846 | -6/Factory | First assault squad dispatched 10054 | -6/Factory | Core integrity fell below 50% 10106 | -6/Factory | Lost 8 parts (2p3n2u1w) 10185 | -6/Factory | Scrapoid reinforcements arrived 10269 | -6/Factory | Found Scrap Suit 10352 | -6/Factory | Scrapoids reinforcements arrived? 10358 | -6/Factory | Discovered new exit (range 7) 10404 | -6/Factory | Identified exit to Lower Caves 10455 | -6/Factory | Lost 8 allies 10556 | -6/Factory | Entered Lower Caves 10802 | -6/Lower Caves | Build established: Scavenger-Scrapper 11314 | -6/Lower Caves | Learned Factory terminal intel 11705 | -6/Lower Caves | Learned Factory emergency access door positions 11714 | -6/Lower Caves | Discovered new exit (range 15) 11725 | -6/Lower Caves | Identified exit to Lower Caves 11736 | -6/Lower Caves | Learned Factory terminal intel 11776 | -6/Lower Caves | Entered another Lower Caves area 11792 | -6/Lower Caves | Discovered new exit (range 7) 11797 | -6/Lower Caves | Identified exit to Factory 12815 | -6/Lower Caves | Discovered new exit (range 9) 12823 | -6/Lower Caves | Identified exit to Data Miner 12993 | -6/Lower Caves | Entered Data Miner 12993 | -6/Data Miner | Discovered new exit (range 6) 13006 | -6/Data Miner | Met Data Miner 13041 | -6/Data Miner | Learned location of Section 7 (-2) 13041 | -6/Data Miner | Acquired the access code to Warlord's prototype stash 13062 | -6/Data Miner | Received God Mode back door access code from Data Miner 13083 | -6/Data Miner | Identified exit to Proximity Caves 13085 | -6/Data Miner | Entered Proximity Caves 13643 | -5/Proximity Caves | Received a Behemoth hack from an annoying Tinkerer 13653 | -5/Proximity Caves | Discovered exit to Factory (range 9) 14027 | -5/Proximity Caves | Entered Factory 14027 | -5/Factory | Evolved 2 slots: Utility x2 14029 | -5/Factory | Loaded intel: 28 terminal locations 14113 | -5/Factory | Repaired Neutrino Core? 14414 | -5/Factory | Discovered new exit (range 12) 14504 | -5/Factory | Discovered new exit (range 6) 14509 | -5/Factory | Identified exit to Factory 14601 | -5/Factory | Scrapoids reinforcements arrived? 14646 | -5/Factory | Lost 4 allies 15002 | -5/Factory | Discovered new exit (range 18) 15362 | -5/Factory | Repaired Ovr. Coil Gun 15548 | -5/Factory | Build established: Hacker-Scrapper 15811 | -5/Factory | Discovered exit to Factory (range 18) 16297 | -5/Factory | Incoming investigation squad redirected 16308 | -5/Factory | Incoming investigation squad redirected 16527 | -5/Factory | Discovered new exit (range 10) 16533 | -5/Factory | Identified exit to Extension 16727 | -5/Factory | First assault squad dispatched 16767 | -5/Factory | Scrapoids reinforcements arrived? 16795 | -5/Factory | Cargo convoy interrupted 17250 | -5/Factory | Scrapoids reinforcements arrived? 17274 | -5/Factory | High security lockdown imminent 17310 | -5/Factory | Imp. System Shield fried by hacking feedback 17331 | -5/Factory | Entered Extension 17331 | -5/Extension | Accompanied by 6 allies 17408 | -5/Extension | Rescued a captive Derelict 17409 | -5/Extension | Rescued a captive Derelict 17442 | -5/Extension | Rescued a captive Derelict 17443 | -5/Extension | Rescued a captive Derelict 17524 | -5/Extension | Rescued a captive Derelict 17524 | -5/Extension | Rescued a captive Derelict 17531 | -5/Extension | Rescued a captive Derelict 17532 | -5/Extension | Rescued a captive Derelict 17552 | -5/Extension | Rescued a captive Derelict 17552 | -5/Extension | Rescued a captive Derelict 17601 | -5/Extension | Build established: Commander-Scrapper 17634 | -5/Extension | Spotted B-75 Beast 17653 | -5/Extension | Rescued A7 17664 | -5/Extension | Spotted B-75 Beast 17667 | -5/Extension | Befriended a Behemoth using the annoying Tinkerer's hack 17671 | -5/Extension | Allies destroyed B-75 Beast 17862 | -5/Extension | Rescued a captive Derelict 17923 | -5/Extension | Rescued a captive Derelict 17931 | -5/Extension | First assault squad dispatched 17936 | -5/Extension | Rescued a captive Derelict 17975 | -5/Extension | Rescued a captive Derelict 17977 | -5/Extension | Rescued a captive Derelict 17981 | -5/Extension | Disrupted transfer network 17993 | -5/Extension | Lost 18 allies 17996 | -5/Extension | Destroyed 10 combat bots 18008 | -5/Extension | Discovered exit to Factory (range 10) 18009 | -5/Extension | Discovered new exit (range 6) 18023 | -5/Extension | Identified exit to Cetus 18040 | -5/Extension | Entered Cetus 18040 | -5/Cetus | Accompanied by 5 allies (A7) 18045 | -5/Cetus | Acquired a Cetus Manufacturing Module code from A7 18055 | -5/Cetus | Spotted Cetus Guard 18060 | -5/Cetus | Spotted Cetus Guard 18061 | -5/Cetus | Spotted Cetus Guard 18065 | -5/Cetus | Allies destroyed Cetus Guard 18065 | -5/Cetus | Spotted Cetus Guard 18068 | -5/Cetus | Destroyed Cetus Guard 18074 | -5/Cetus | Allies destroyed Cetus Guard 18075 | -5/Cetus | Destroyed Cetus Guard 18135 | -5/Cetus | Started Cetus Manufacturing Module 18142 | -5/Cetus | Escorted A7 to Cetus Mainframe 18151 | -5/Cetus | Discovered new exit (range 22) 18160 | -5/Cetus | Manufactured an Enhanced Grunt 18169 | -5/Cetus | Identified exit to Archives 18185 | -5/Cetus | Manufactured an Enhanced Grunt 18210 | -5/Cetus | Manufactured an Enhanced Grunt 18235 | -5/Cetus | Manufactured an Enhanced Grunt 18260 | -5/Cetus | Manufactured an Enhanced Grunt 18309 | -5/Cetus | Entered Archives 18309 | -5/Archives | Accompanied by 10 allies (A7) 18314 | -5/Archives | Received a hacking code to weaken MAIN.C 18350 | -5/Archives | Discovered new exit (range 22) 18360 | -5/Archives | Discovered new exit (range 22) 18376 | -5/Archives | Discovered exit to Factory (range 22) 18610 | -5/Archives | Identified exit to Hub_04(d) 18748 | -5/Archives | Unable to access archive contents 18756 | -5/Archives | Unable to access archive contents 18769 | -5/Archives | Unable to access archive contents 18777 | -5/Archives | Unable to access archive contents 18816 | -5/Archives | Build established: Scavenger-Scrapper 19999 | -5/Archives | Entered Hub_04(d) 19999 | -5/Hub_04(d) | Accompanied by 7 allies 20198 | -5/Hub_04(d) | Discovered exit to Factory (range 10) 20303 | -5/Hub_04(d) | Network Hub disabled 20312 | -5/Hub_04(d) | Spotted Lightning 20312 | -5/Hub_04(d) | Spotted Lightning 20312 | -5/Hub_04(d) | Spotted Lightning 20328 | -5/Hub_04(d) | Entered Factory 20328 | -4/Factory | Evolved 2 slots: Utility x1, Weapon x1 20329 | -4/Factory | Loaded intel: 26 terminal locations 20341 | -4/Factory | Spotted B-86 Titan 20350 | -4/Factory | Lost 3 allies 20377 | -4/Factory | Scrapoid reinforcements arrived 20466 | -4/Factory | Identified exit to Upper Caves 20496 | -4/Factory | Incoming investigation squad redirected 20589 | -4/Factory | Lost 3 allies 20740 | -4/Factory | Build established: Hacker-Scrapper 20751 | -4/Factory | Repaired Centrium Medium Armor Plating? 20955 | -4/Factory | Incoming investigation squad redirected 20995 | -4/Factory | Fabricated P-80 Master? 21101 | -4/Factory | Repaired Adv. Cooling System? 21275 | -4/Factory | System corruption reached 10% 21288 | -4/Factory | Discovered new exit (range 9) 21325 | -4/Factory | Entered Research 21325 | -3/Research | Evolved 2 slots: Utility x2 21354 | -3/Research | Lost 20 parts (1p6n8u5w) 21398 | -3/Research | Incoming investigation squad redirected 21472 | -3/Research | Discovered new exit (range 5) 21474 | -3/Research | Discovered new exit (range 16) 21475 | -3/Research | Entered another Research area 21475 | -2/Research | Evolved 2 slots: Propulsion x2 21487 | -2/Research | Lost 6 parts (1p1n4w) 21512 | -2/Research | Spotted B-90 Cyclops 21595 | -2/Research | Build established: Mutant 21785 | -2/Research | Identified exit to Access 21814 | -2/Research | Core integrity fell below 50% 21836 | -2/Research | Entered Access 21836 | -1/Access | Evolved 2 slots: Power x1, Weapon x1 21844 | -1/Access | Lost 13 parts (2p6n3u2w) 22139 | -1/Access | Hacking Suite fried by hacking feedback 22167 | -1/Access | Incoming investigation squad redirected 22248 | -1/Access | Build established: Hacker-Mutant 22355 | -1/Access | Spotted B-99 Colossus 22390 | -1/Access | Lost 5 parts (2p1u2w) 22627 | -1/Access | First assault squad dispatched 22632 | -1/Access | System corruption reached 10% 22644 | -1/Access | Incoming assault squad redirected 22646 | -1/Access | Incoming assault squad redirected 22668 | -1/Access | Core integrity fell below 50% 22674 | -1/Access | Scrapoid reinforcements arrived 22682 | -1/Access | P-80 Master assimilated allied 01A31-D 22687 | -1/Access | Found Corrupted Scrap Suit 22688 | -1/Access | System corruption reached 30% 22700 | -1/Access | Core integrity fell below 20% 22705 | -1/Access | Found Scrap Suit 22707 | -1/Access | Garrison activated, responded to threat 22718 | -1/Access | Lost 4 allies 22743 | -1/Access | Lost 21 parts (3p5n7u6w) 22798 | -1/Access | Destroyed by H-88 Terminator with KE Penetrator Last Messages --------------- 22760_ System corrupted: Matter fused (-5). 22760_ Slug penetrates Hyperwave Decoder. 22774_ Ovr. Huge Scrapsphere destroyed. 22775_ System corrupted: FCS attempts to trigger Nova Cannon. 22777_ Penetrated by Slug. 22777_ Ovr. Huge Scrapsphere destroyed. 22777_ Slug penetrates Wall. 22780_ Scrap Suit destroyed. 22780_ Penetrated by Slug. 22787_ Slug penetrates Wave Collapse Detector. 22787_ Wave Collapse Detector explodes. 22787_ Slug penetrates U-05 Engineer. 22787_ U-05 Engineer destroyed. 22788_ Penetrated by Slug. 22790_ Z%H U8YIKEP66YGVP%0DQP 22790_ Penetrated by Slug. 22790_ Ovr. Huge Scrapsphere destroyed. 22790_ Penetrated by Slug. 22798_ Slug penetrates Terminal. 22798_ Penetrated by Slug. Map ----- +----------------------------------------------------+ | ?????????????????????????????????????????????????? | | ?????????????????????????????????????????????????? | | ?????????????????????????????????????????????????? | | ?????????????????????????????????????????????????? | | ?????????????????????????????????????????????????? | | ?????????????????????????????????????????????????? | | ?????????????????????????????????????????????????? | | ?????????????????????????????????????????????????? | | ?????????????????????????????????????????????????? | | ?????????????????????????????????????????????????? | | ?????????????????????????????????????????????????? | | ?????????????????????????????????????????????????? | | ?????????????????????????????????????????????????? | | ?????????????????????????????????????????????????? | | ?????????????????????????????????????????????????? | | ?????????????????????????????????????????????????? | | ?????????????????????????????????????????????????? | | ?????????????????????????????????????????????????? | | ???????????????????????????######?????#??????????? | | ???????????????????????????"""""#??? ##?????????? | | ?????????????????????#+????"" F"#?? ??????????? | | ???????????? ???????# ####"" ""## #?????????? | | ??????????? ####### #?????????? | | ?????????? #?????????? | | ?????????? ????????????? | | ?????????? @ "" #?????????? | | ??????????# """ ###???????? | | ??????????# "T ?????? | | ??????????+ """ ? | | ??????????# "" # | | ??????????# | | ??????????# ########### | | ????????????????????????# ! | | ??????????????#########?# | | ??????????????# ?# | | ??????????????# # % """"" | | ??????????????# # """"" | | ??????????????# " h """"" | | ??????????????# # """"" | | ??????????????# ! # """"" | | ??????????????# ?# ##### | | ??????????????# ?# #???# | | ??????????????########??# #???# | | ????????????????????????# #???## | | ??????????????????????? #????# ##### | | ??????????????????????#####+###????# ## ! | | ???????????????????????????????????## ###### ## | | ????????????????????????????????????# #????# ## | | ????????????????????????????????????# #????# ## | | ???????????????????????????????????##+###### ##### | +----------------------------------------------------+ Best States ------------- Heat Dissipation 75 Energy Generation 59 Energy Capacity 515 Matter Stores 300 Matter Capacity 300 Sight Range 22 Robot Scan Range 18 Terrain Scan Density 10 ECM Strength 2 Jamming Range 16 Cloak Strength 4 EM Shielding 3 Corruption Block 20 Armor Coverage 600 Utility Shielding 66 Weapon Shielding 66 Evasion (%) 64 Target Analysis 8 Armor Integrity Analysis 30 Recoil Reduction 2 Offensive Hacking 24 Defensive Hacking 24 Item Schematics ----------------- Combat Drone Bay | -6/Data Miner | Free Lgt. Regenerative Plating | -6/Data Miner | Free Enh. Flexi-carbon Leg | -6/Data Miner | Free Exp. Heat Sink | -6/Data Miner | Free Tiamat Missile Launcher | -6/Data Miner | Free Imp. Antigrav System | -6/Data Miner | Free Adv. Focal Shield | -6/Data Miner | Free Hvy. Gauss Cannon | -6/Data Miner | Free Hyp. Railgun | -6/Data Miner | Free Multitool | -5/Factory | Scanalyzed Ovr. Coil Gun | -5/Factory | Scanalyzed Nuclear Pulse Array | -5/Factory | Hacked Robot Schematics ------------------ O-16 Technician | -10/Materials | Hacked R-10 Processor | -6/Data Miner | Free Y-64 Sentinel | -6/Data Miner | Free H-66 Slayer | -6/Data Miner | Free E-15 Imp | -6/Data Miner | Free A-15 Conveyor | -6/Data Miner | Free A-27 Freighter | -6/Data Miner | Free L-61 Swordsman | -6/Data Miner | Free P-80 Master | -4/Factory | Hacked M-36 Artificer | -4/Factory | Hacked Fabricated ------------ P-80 Master | x2 | -4/Factory Alien Tech Used ----------------- None Achievements -------------- None Challenges ------------ None Game ------ Seed HelicalCloakingTerminator Manual? 0 Play Time 04:42:49 Cumulative 470.4 hours Start 2025.05.02 @ 23:42:03 End 2025.05.03 @ 04:37:14 Sessions 1 Manual Loads 0 Difficulty Rogue Special Mode None Game No. 298 Rogue 295 Adventurer 3 Explorer 0 Win Type - Total 8 Types 7/0/1/0/0/0/0/0/0 Lore% 70 Gallery% 75 Achievement% 67 Wizard Run 0 Options --------- Layout 0 ASCII 0 Keyboard 0 Movement Numpad Keybinds 0 Fullscreen 1 Font 18/SmallcapsGlow Map View 76x50 Zoom Use 0% Tactical HUD 1 Map Filters NONE Filters NONE Steam 1 RUN: 618f935d-f0fb-44c0-aaaa-d87afa31886a